bitfinex-derivatives/quotes_BTCF0:USTF0_20250527
["timestamp","ask_amount","ask_price","bid_price","bid_amount"]
[1748382458502,50.08566541,108950.0,108940.0,3.46058069]
[1748382458906,50.08566541,108950.0,108940.0,3.46054069]
[1748382459106,50.08566541,108950.0,108940.0,3.40691784]
[1748382459405,50.08566541,108950.0,108940.0,3.47397774]
[1748382459611,0.60858801,108950.0,108940.0,3.5101499]
[1748382460003,0.60858801,108950.0,108940.0,3.55637741]
[1748382460301,0.35858801,108950.0,108940.0,2.71011697]
[1748382460502,0.35858801,108950.0,108940.0,3.43353714]
[1748382460702,0.35858801,108950.0,108940.0,3.62343731]
[1748382461307,0.1355,108960.0,108950.0,49.82489219]
[1748382461502,0.1355,108960.0,108950.0,50.85917637]
[1748382461702,0.47728,108960.0,108950.0,50.85917637]
[1748382462104,0.47728,108960.0,108950.0,50.90965637]
[1748382462604,0.47928,108960.0,108950.0,51.44317637]
[1748382464208,0.48028,108960.0,108950.0,51.44317637]
[1748382464410,0.73808,108960.0,108950.0,51.44317637]
[1748382464609,0.73808,108960.0,108950.0,50.90965637]
[1748382464909,0.73808,108960.0,108950.0,51.2532762]
[1748382465113,0.73808,108960.0,108950.0,1.80176438]
[1748382465497,0.73808,108960.0,108950.0,1.81552438]
[1748382468904,0.73808,108960.0,108950.0,1.85682438]
[1748382469407,0.48808,108960.0,108950.0,1.85682438]
[1748382469712,0.48808,108960.0,108950.0,1.96005175]
[1748382470214,0.48808,108960.0,108950.0,2.00619887]
[1748382471304,0.3963,108960.0,108950.0,2.09798688]
[1748382471816,0.3963,108960.0,108950.0,2.46928688]
[1748382472710,0.3963,108960.0,108950.0,1.88961976]
[1748382472912,0.3963,108960.0,108950.0,3.92313976]
[1748382473615,0.3963,108960.0,108950.0,3.96928412]
[1748382473805,0.1306,108960.0,108950.0,3.91569943]
[1748382474002,0.1306,108960.0,108950.0,3.86955575]
[1748382474919,0.1306,108960.0,108950.0,3.92309692]
[1748382475810,0.1306,108960.0,108950.0,3.91569943]
[1748382476010,0.003,108960.0,108950.0,4.07631152]
[1748382476609,0.003,108960.0,108950.0,4.07630934]
[1748382476805,0.003,108960.0,108950.0,3.96310794]
[1748382477007,0.003,108960.0,108950.0,4.12638674]
[1748382478019,49.4284,108960.0,108950.0,4.12638674]
[1748382478920,49.5568,108960.0,108950.0,4.12638674]
[1748382479920,49.5568,108960.0,108950.0,3.98262354]
[1748382480219,49.5568,108960.0,108950.0,3.98254354]
[1748382481318,49.5568,108960.0,108950.0,3.98254295]
[1748382481515,49.5568,108960.0,108950.0,3.98238295]
[1748382483917,49.5568,108960.0,108950.0,4.34318295]
[1748382484424,49.5568,108960.0,108950.0,3.80990295]
[1748382484629,49.5568,108960.0,108950.0,4.34314295]
[1748382484922,49.5568,108960.0,108950.0,3.80990295]
[1748382485128,49.5568,108960.0,108950.0,4.34314295]
[1748382485317,49.5568,108960.0,108950.0,4.34313922]
[1748382485922,49.5568,108960.0,108950.0,3.91289922]
[1748382486122,49.5568,108960.0,108950.0,4.34313922]
[1748382486819,49.5568,108960.0,108950.0,3.80989922]
[1748382487018,49.5568,108960.0,108950.0,4.34313922]
[1748382487717,49.5568,108960.0,108950.0,4.37009617]
[1748382488222,49.5568,108960.0,108950.0,4.37005617]
[1748382488717,49.5568,108960.0,108950.0,4.4225878]
[1748382488913,49.5568,108960.0,108950.0,2.19948763]
[1748382489220,49.5568,108960.0,108950.0,2.9635317]
[1748382489420,49.6794,108960.0,108950.0,4.46341135]
[1748382489622,49.6794,108960.0,108950.0,4.43655447]
[1748382490415,49.6794,108960.0,108950.0,4.34319894]
[1748382491424,49.6794,108960.0,108950.0,4.25141093]
[1748382491626,49.6794,108960.0,108950.0,4.06151076]
[1748382491922,0.12173752,108970.0,108960.0,0.3206]
[1748382492116,0.12173752,108970.0,108960.0,2.2894811]
[1748382492315,0.12173752,108970.0,108960.0,2.39270847]
[1748382492822,0.12173752,108970.0,108960.0,2.48446847]
[1748382493023,0.12473752,108970.0,108960.0,2.48546847]
[1748382493627,0.12473752,108970.0,108960.0,2.61016847]
[1748382493829,0.12473752,108970.0,108960.0,2.61017603]
[1748382494221,0.12473752,108970.0,108960.0,2.73627603]
[1748382494421,0.12473752,108970.0,108960.0,2.6827508]
[1748382494626,0.12673752,108970.0,108960.0,2.73628645]
[1748382495224,0.37483752,108970.0,108960.0,2.73628645]
[1748382495830,0.37483752,108970.0,108960.0,2.74997414]
[1748382497422,0.37483752,108970.0,108960.0,2.69643849]
[1748382498729,0.37483752,108970.0,108960.0,2.50653832]
[1748382498925,0.37483752,108970.0,108960.0,2.69643849]
[1748382499534,0.37483752,108970.0,108960.0,2.76334938]
[1748382500325,0.37483752,108970.0,108960.0,2.69643849]
[1748382500522,0.37483752,108970.0,108960.0,2.76334938]
[1748382501132,0.37483752,108970.0,108960.0,2.23018938]
[1748382501337,0.37483752,108970.0,108960.0,2.69639849]
[1748382501531,0.37483752,108970.0,108960.0,2.76330938]
[1748382501834,0.37483752,108970.0,108960.0,2.23018938]
[1748382502133,0.37483752,108970.0,108960.0,2.44559849]
[1748382502530,0.37483752,108970.0,108960.0,2.51296223]
[1748382502928,0.37483752,108970.0,108960.0,1.85794223]
[1748382503135,0.37483752,108970.0,108960.0,2.39106223]
[1748382503725,0.37483752,108970.0,108960.0,2.51342223]
[1748382503921,0.37483752,108970.0,108960.0,1.96094223]
[1748382504127,0.37483752,108970.0,108960.0,2.39102223]
[1748382504327,0.37483752,108970.0,108960.0,2.51342223]
[1748382504833,0.37483752,108970.0,108960.0,1.98034223]
[1748382505035,0.37483752,108970.0,108960.0,2.39102223]
[1748382505832,0.37483752,108970.0,108960.0,2.51782223]
[1748382506137,0.37483752,108970.0,108960.0,2.39102223]
[1748382506339,0.37483752,108970.0,108960.0,2.51782223]
[1748382506839,0.37483752,108970.0,108960.0,1.98476245]
[1748382507036,0.37483752,108970.0,108960.0,2.32413156]
[1748382507436,0.37483752,108970.0,108960.0,2.45093156]
[1748382507940,0.37483752,108970.0,108960.0,2.56673156]
[1748382508140,0.37483752,108970.0,108960.0,2.68603156]
[1748382508336,0.37483752,108970.0,108960.0,2.75294245]
[1748382510151,0.37483752,108970.0,108960.0,2.21986245]
[1748382510335,0.37483752,108970.0,108960.0,2.75290245]
[1748382510531,0.37483752,108970.0,108960.0,2.56300228]
[1748382511039,0.37483752,108970.0,108960.0,2.02996228]
[1748382511242,0.37483752,108970.0,108960.0,2.02996151]
[1748382511441,0.37483752,108970.0,108960.0,1.79486151]
[1748382511637,0.83995629,108970.0,108960.0,1.60815782]
[1748382511945,0.83995629,108970.0,108960.0,1.38447013]
[1748382512143,0.71650969,108970.0,108960.0,1.81077057]
[1748382512329,0.71650969,108970.0,108960.0,1.76403841]
[1748382512330,0.89995629,108970.0,108960.0,1.76403841]
[1748382512533,0.83995629,108970.0,108960.0,2.12923841]
[1748382512933,0.83995629,108970.0,108960.0,1.88173841]
[1748382513238,0.83995629,108970.0,108960.0,1.77863276]
[1748382513437,0.90995629,108970.0,108960.0,1.7250134]
[1748382513833,0.83995629,108970.0,108960.0,1.7250134]
[1748382514043,0.83995629,108970.0,108960.0,1.6073134]
[1748382514242,0.83995629,108970.0,108960.0,1.7322134]
[1748382515539,0.84995629,108970.0,108960.0,1.7322134]
[1748382517240,0.66650969,108970.0,108960.0,1.7322134]
[1748382517545,0.84995629,108970.0,108960.0,1.7322134]
[1748382517746,0.84995629,108970.0,108960.0,1.8556134]
[1748382517939,0.83995629,108970.0,108960.0,1.8556134]
[1748382518140,0.83995629,108970.0,108960.0,1.9745134]
[1748382522448,0.83995629,108970.0,108960.0,1.9882734]
[1748382524836,0.87982509,108970.0,108960.0,1.5582334]
[1748382525157,0.87982509,108970.0,108960.0,1.9881934]
[1748382527639,0.78805309,108970.0,108960.0,1.9881934]
[1748382527838,0.85805309,108970.0,108960.0,1.9881934]
[1748382528645,0.81818429,108970.0,108960.0,1.9881934]
[1748382529453,0.74818429,108970.0,108960.0,1.8581934]
[1748382530154,0.62488429,108970.0,108960.0,1.8581934]
[1748382531055,0.65488429,108970.0,108960.0,1.8581934]
[1748382531752,0.53328429,108970.0,108960.0,1.8581934]
[1748382532052,0.50328429,108970.0,108960.0,1.0674334]
[1748382532258,0.54314678,108970.0,108960.0,1.4973534]
[1748382532552,0.50328429,108970.0,108960.0,1.4973534]
[1748382532757,0.54314583,108970.0,108960.0,1.4973534]
[1748382532958,0.66414583,108970.0,108960.0,1.4973534]
[1748382533954,0.54314583,108970.0,108960.0,1.4973534]
[1748382536562,0.54314583,108970.0,108960.0,1.0774334]
[1748382536860,0.54316032,108970.0,108960.0,1.5073134]
[1748382537362,0.54316429,108970.0,108960.0,1.5073134]
[1748382538062,0.35326412,108970.0,108960.0,1.4382334]
[1748382538262,0.35326412,108970.0,108960.0,1.8681134]
[1748382538263,0.54231543,108970.0,108960.0,1.8681134]
[1748382538561,0.37848429,108970.0,108960.0,1.9739675]
[1748382538968,0.38048429,108970.0,108960.0,1.9739675]
[1748382539463,0.50648429,108970.0,108960.0,1.9739675]
[1748382540462,0.54562294,108970.0,108960.0,1.9739675]
[1748382540851,0.54762294,108970.0,108960.0,1.9749675]
[1748382541051,0.50848429,108970.0,108960.0,1.9749675]
[1748382541259,0.5476212,108970.0,108960.0,1.9749675]
[1748382541654,0.4216212,108970.0,108960.0,1.9749675]
[1748382543254,0.4216212,108970.0,108960.0,2.01137141]
[1748382543462,0.5499212,108970.0,108960.0,2.00137141]
[1748382543759,0.5499212,108970.0,108960.0,2.00125141]
[1748382544152,0.5499212,108970.0,108960.0,2.00137141]
[1748382544461,0.67945368,108970.0,108960.0,2.00137141]
[1748382545264,0.72945368,108970.0,108960.0,2.00137141]
[1748382546953,0.72945368,108970.0,108960.0,1.64057141]
[1748382548257,0.72945368,108970.0,108960.0,1.64045141]
[1748382548764,0.72944853,108970.0,108960.0,1.64045141]
[1748382549764,0.72944853,108970.0,108960.0,1.16551739]
[1748382549970,0.72944853,108970.0,108960.0,1.59523739]
[1748382552164,0.72944853,108970.0,108960.0,1.69847209]
[1748382552465,0.72944853,108970.0,108960.0,1.26875209]
[1748382552666,0.72944853,108970.0,108960.0,1.6518581]
[1748382552878,0.72944853,108970.0,108960.0,1.5486234]
[1748382553164,0.72944952,108970.0,108960.0,1.5486234]
[1748382553355,0.85774952,108970.0,108960.0,1.5486234]
[1748382554562,0.85774952,108970.0,108960.0,1.5485834]
[1748382557263,0.69028429,108970.0,108960.0,1.5485834]
[1748382557470,0.729445,108970.0,108960.0,1.5485834]
[1748382558770,0.729445,108970.0,108960.0,1.5485434]
[1748382558968,0.729445,108970.0,108960.0,1.5484234]
[1748382559667,0.729445,108970.0,108960.0,1.5485434]
[1748382559868,0.729445,108970.0,108960.0,1.36508]
[1748382560465,0.729445,108970.0,108960.0,1.31461]
[1748382560866,0.599945,108970.0,108960.0,1.31461]
[1748382561656,0.59994346,108970.0,108960.0,1.31461]
[1748382562564,0.59994346,108970.0,108960.0,1.464465]
[1748382564965,0.41004329,108970.0,108960.0,1.464465]
[1748382565172,0.59994346,108970.0,108960.0,1.4178447]
[1748382565370,0.59994346,108970.0,108960.0,1.31461]
[1748382565965,0.59994346,108970.0,108960.0,1.31449]
[1748382566171,0.59994346,108970.0,108960.0,1.31461]
[1748382566574,0.41004329,108970.0,108960.0,1.31461]
[1748382566777,0.59994346,108970.0,108960.0,1.31461]
[1748382567664,0.28174329,108970.0,108960.0,1.59629818]
[1748382568474,0.47164346,108970.0,108960.0,1.40639801]
[1748382570273,0.43248429,108970.0,108960.0,1.40639801]
[1748382570483,0.47165509,108970.0,108960.0,1.40639801]
[1748382570984,0.60185509,108970.0,108960.0,1.40639801]
[1748382574178,0.60185509,108970.0,108960.0,1.95709818]
[1748382574377,0.60185509,108970.0,108960.0,1.97067435]
[1748382574584,0.56268429,108970.0,108960.0,1.97067435]
[1748382574778,0.60185624,108970.0,108960.0,1.91705499]
[1748382575076,0.60185624,108970.0,108960.0,1.87042834]
[1748382575476,0.47165624,108970.0,108960.0,1.9240477]
[1748382575675,0.47165624,108970.0,108960.0,1.87042834]
[1748382575676,0.60155624,108970.0,108960.0,1.87042834]
[1748382575884,0.60155624,108970.0,108960.0,1.9240477]
[1748382576086,0.60155624,108970.0,108960.0,1.76719801]
[1748382576382,0.60155624,108970.0,108960.0,1.82081737]
[1748382576682,0.60155624,108970.0,108960.0,1.76719801]
[1748382576874,0.60155624,108970.0,108960.0,1.7807971]
[1748382577583,0.41165607,108970.0,108960.0,1.7807971]
[1748382577773,0.41165607,108970.0,108960.0,1.97069727]
[1748382577971,0.60155624,108970.0,108960.0,1.7807971]
[1748382578782,0.60157044,108970.0,108960.0,1.7807971]
[1748382582082,0.60157044,108970.0,108960.0,1.88402742]
[1748382582281,0.41167027,108970.0,108960.0,1.88402742]
[1748382582476,0.41167027,108970.0,108960.0,1.7807971]
[1748382582690,0.41167027,108970.0,108960.0,1.98426972]
[1748382583290,0.41166749,108970.0,108960.0,1.98426784]
[1748382583791,0.41166749,108970.0,108960.0,1.93064848]
[1748382585206,0.41166749,108970.0,108960.0,1.88402386]
[1748382585489,0.41166749,108970.0,108960.0,1.7807971]
[1748382585907,0.41166749,108970.0,108960.0,1.6301294]
[1748382586285,0.41166749,108970.0,108960.0,2.6301294]
[1748382586487,0.41166749,108970.0,108960.0,2.73335964]
[1748382586799,0.28176749,108970.0,108960.0,2.92325981]
[1748382587100,0.28176749,108970.0,108960.0,3.10672321]
[1748382587396,0.37318412,108970.0,108960.0,3.00349297]
[1748382587600,0.41236663,108970.0,108960.0,3.00349297]
[1748382590393,0.41236663,108970.0,108960.0,3.05396297]
[1748382590696,0.41236663,108970.0,108960.0,2.8640628]
[1748382591499,0.41236663,108970.0,108960.0,2.91768216]
[1748382591696,0.41236663,108970.0,108960.0,2.73421876]
[1748382591889,0.53577155,108970.0,108960.0,2.6805994]
[1748382592090,0.53577155,108970.0,108960.0,2.73421876]
[1748382592482,0.41237155,108970.0,108960.0,2.6805994]
[1748382593088,0.41237155,108970.0,108960.0,2.8640627]
[1748382596003,0.57237155,108970.0,108960.0,2.8640627]
[1748382596198,0.57236394,108970.0,108960.0,2.8640627]
[1748382596394,0.57236394,108970.0,108960.0,2.8639427]
[1748382597499,0.44176394,108970.0,108960.0,3.05384287]
[1748382597799,0.44176394,108970.0,108960.0,3.24374304]
[1748382597992,0.04831734,108970.0,108960.0,3.2973624]
[1748382598600,0.00913752,108970.0,108960.0,3.36398192]
[1748382598797,0.00913752,108970.0,108960.0,3.41358205]
[1748382598993,0.00913752,108970.0,108960.0,3.39358205]
[1748382599302,0.00913752,108970.0,108960.0,3.86693758]
[1748382599493,0.00913752,108970.0,108960.0,3.93384847]
[1748382599897,0.00413752,108970.0,108960.0,3.93284847]
[1748382600214,0.00613752,108970.0,108960.0,3.93284847]
[1748382600794,0.00613752,108970.0,108960.0,3.83949294]
[1748382602790,0.00613752,108970.0,108960.0,3.77258205]
[1748382602995,0.00613752,108970.0,108960.0,3.83949294]
[1748382603307,0.00613752,108970.0,108960.0,3.77252463]
[1748382603505,0.00613752,108970.0,108960.0,3.83943552]
[1748382604496,0.00613752,108970.0,108960.0,3.78896552]
[1748382605005,0.00613752,108970.0,108960.0,3.83943552]
[1748382605307,0.00613752,108970.0,108960.0,3.77252463]
[1748382605998,0.00613752,108970.0,108960.0,3.87460463]
[1748382606204,0.00613752,108970.0,108960.0,3.49460463]
[1748382606402,0.00613752,108970.0,108960.0,3.83460463]
[1748382607606,0.00613752,108970.0,108960.0,3.88812227]
[1748382610615,0.00613752,108970.0,108960.0,3.8345776]
[1748382611208,0.00613752,108970.0,108960.0,3.88811344]
[1748382611707,0.00613752,108970.0,108960.0,3.8345776]
[1748382611907,0.00613752,108970.0,108960.0,3.88810539]
[1748382612298,0.00613752,108970.0,108960.0,3.83456962]
[1748382613702,0.00613752,108970.0,108960.0,3.88810472]
[1748382613903,0.00613752,108970.0,108960.0,3.83456962]
[1748382614112,0.00613752,108970.0,108960.0,3.88810471]
[1748382614313,0.00613752,108970.0,108960.0,3.84157762]
[1748382615409,0.00613752,108970.0,108960.0,3.73835813]
[1748382615914,0.00613752,108970.0,108960.0,3.84157229]
[1748382616505,0.00613752,108970.0,108960.0,3.73835813]
[1748382617113,0.00613752,108970.0,108960.0,2.92931779]
[1748382617312,0.00613752,108970.0,108960.0,3.54833796]
[1748382617510,0.00613752,108970.0,108960.0,3.11921796]
[1748382617705,0.13903752,108970.0,108960.0,3.54833796]
[1748382617904,0.00613752,108970.0,108960.0,3.73823813]
[1748382619710,0.00613752,108970.0,108960.0,3.83444567]
[1748382620415,0.00613752,108970.0,108960.0,3.84376002]
[1748382620717,0.00613752,108970.0,108960.0,3.91067091]
[1748382621107,0.00613752,108970.0,108960.0,3.84376002]
[1748382625109,0.00613752,108970.0,108960.0,3.91069667]
[1748382626317,0.00613752,108970.0,108960.0,3.910707]
[1748382627718,0.00613752,108970.0,108960.0,4.00406253]
[1748382629305,0.00613752,108970.0,108960.0,4.05715437]
[1748382629817,0.10240522,108980.0,108970.0,0.1834466]
[1748382630024,0.55425098,108990.0,108980.0,0.1834297]
[1748382630025,0.50654679,108990.0,108980.0,0.1834297]
[1748382630314,0.875752,108990.0,108980.0,1.56186987]
[1748382630516,0.875752,108990.0,108980.0,1.70596657]
[1748382630719,0.875752,108990.0,108980.0,1.74725657]
[1748382631915,0.69418209,108990.0,108980.0,1.7938807]
[1748382632117,0.69918209,108990.0,108980.0,1.98073277]
[1748382632321,0.88259499,108990.0,108980.0,1.98073277]
[1748382632707,0.88759499,108990.0,108980.0,1.99549277]
[1748382632913,1.26379499,108990.0,108980.0,1.99549277]
[1748382633115,0.74538209,108990.0,108980.0,1.9418407]
[1748382633315,0.84738209,108990.0,108980.0,1.9418407]
[1748382633522,0.84438209,108990.0,108980.0,1.99449277]
[1748382633823,0.84438209,108990.0,108980.0,2.09770405]
[1748382634225,0.84438209,108990.0,108980.0,1.73702785]
[1748382634226,1.02779499,108990.0,108980.0,1.73702785]
[1748382634412,1.02779499,108990.0,108980.0,1.78364469]
[1748382634610,1.02779499,108990.0,108980.0,1.83729676]
[1748382634817,1.02779499,108990.0,108980.0,2.02419676]
[1748382635023,1.02779499,108990.0,108980.0,1.92392785]
[1748382635526,1.02779499,108990.0,108980.0,2.02419489]
[1748382635823,1.02779499,108990.0,108980.0,2.02419511]
[1748382636025,1.02779509,108990.0,108980.0,2.02419511]
[1748382636211,1.02779509,108990.0,108980.0,1.97054304]
[1748382637628,1.02779509,108990.0,108980.0,2.02419511]
[1748382637928,1.0277907,108990.0,108980.0,2.02419308]
[1748382638121,0.83789053,108990.0,108980.0,1.97054101]
[1748382638421,0.83789053,108990.0,108980.0,1.83729308]
[1748382638626,0.83789053,108990.0,108980.0,1.78364101]
[1748382639226,0.83789053,108990.0,108980.0,1.83729308]
[1748382640131,0.83789053,108990.0,108980.0,1.78364101]
[1748382640327,0.83789053,108990.0,108980.0,1.83729308]
[1748382640626,0.83789053,108990.0,108980.0,2.22809308]
[1748382642125,0.79868971,108990.0,108980.0,2.03309066]
[1748382642328,0.83788877,108990.0,108980.0,2.03309066]
[1748382642531,0.83788877,108990.0,108980.0,2.01381657]
[1748382646525,0.83788768,108990.0,108980.0,2.01381657]
[1748382647335,0.83788768,108990.0,108980.0,2.21728821]
[1748382648725,0.52077468,108990.0,108980.0,2.21728821]
[1748382648924,0.32537468,108990.0,108980.0,2.36728821]
[1748382650831,0.28617671,108990.0,108980.0,2.36728821]
[1748382651033,0.3253738,108990.0,108980.0,2.36728821]
[1748382651228,0.5163738,108990.0,108980.0,2.36728821]
[1748382654235,0.5163738,108990.0,108980.0,2.32067982]
[1748382655136,0.5163738,108990.0,108980.0,2.21746864]
[1748382655326,0.51637109,108990.0,108980.0,2.21746864]
[1748382655527,0.51637109,108990.0,108980.0,2.32067688]
[1748382655721,0.51637109,108990.0,108980.0,2.21746864]
[1748382656538,0.51637109,108990.0,108980.0,2.3206772]
[1748382657023,0.51637146,108990.0,108980.0,2.26702513]
[1748382657227,0.51637146,108990.0,108980.0,2.16381657]
[1748382657427,0.88968453,108990.0,108980.0,2.16365657]
[1748382657726,0.88968453,108990.0,108980.0,1.73477657]
[1748382657926,1.08828453,108990.0,108980.0,2.16365657]
[1748382658432,1.08828453,108990.0,108980.0,2.16377657]
[1748382658635,1.08828453,108990.0,108980.0,2.16373657]
[1748382658838,1.08828453,108990.0,108980.0,1.73489657]
[1748382659136,1.08828453,108990.0,108980.0,2.16373657]
[1748382659736,1.08828778,108990.0,108980.0,2.16373657]
[1748382659930,1.08828778,108990.0,108980.0,1.73489657]
[1748382660240,1.08828778,108990.0,108980.0,2.16373657]
[1748382660838,1.08828778,108990.0,108980.0,1.73489657]
[1748382661038,1.08828778,108990.0,108980.0,2.16373657]
[1748382661232,1.08828778,108990.0,108980.0,1.78854864]
[1748382661440,1.08828778,108990.0,108980.0,2.16373657]
[1748382662234,1.08828778,108990.0,108980.0,1.73489657]
[1748382662439,1.08828198,108990.0,108980.0,2.16373657]
[1748382662634,1.08828198,108990.0,108980.0,1.73489657]
[1748382662936,1.08828198,108990.0,108980.0,1.7355128]
[1748382663135,1.08828198,108990.0,108980.0,2.16554526]
[1748382663335,0.88968198,108990.0,108980.0,2.16554526]
[1748382664133,0.69978181,108990.0,108980.0,2.16554526]
[1748382664332,0.88888181,108990.0,108980.0,2.16554526]
[1748382665152,0.69978181,108990.0,108980.0,2.16554526]
[1748382666935,0.69978245,108990.0,108980.0,2.16554526]
[1748382669533,0.69978245,108990.0,108980.0,1.73674526]
[1748382669732,0.69978245,108990.0,108980.0,2.16550526]
[1748382670134,0.69978245,108990.0,108980.0,1.97560509]
[1748382670335,0.69978245,108990.0,108980.0,2.16550526]
[1748382670736,0.32798245,108990.0,108980.0,2.16550526]
[1748382671149,0.3279774,108990.0,108980.0,2.16550526]
[1748382671645,0.5265774,108990.0,108980.0,2.16550526]
[1748382672241,0.5265774,108990.0,108980.0,1.73674526]
[1748382672441,0.5265774,108990.0,108980.0,2.16546526]
[1748382672638,0.8968774,108990.0,108980.0,2.16546526]
[1748382673444,0.8968774,108990.0,108980.0,1.73674526]
[1748382673647,0.8968774,108990.0,108980.0,2.16546526]
[1748382673853,0.8968774,108990.0,108980.0,2.21911733]
[1748382674950,0.7147774,108990.0,108980.0,2.21911733]
[1748382675452,0.52657606,108990.0,108980.0,2.21911733]
[1748382675850,0.32797606,108990.0,108980.0,2.21911733]
[1748382676236,0.32797606,108990.0,108980.0,1.79039733]
[1748382676441,0.89317606,108990.0,108980.0,1.60049716]
[1748382676642,0.89317606,108990.0,108980.0,2.21907733]
[1748382676944,0.85398961,108990.0,108980.0,2.21907733]
[1748382677145,0.8931757,108990.0,108980.0,2.21907733]
[1748382677450,0.85398961,108990.0,108980.0,2.36889129]
[1748382678050,0.85398961,108990.0,108980.0,1.75601129]
[1748382678242,0.85398961,108990.0,108980.0,2.18469129]
[1748382678439,0.89317465,108990.0,108980.0,2.13808476]
[1748382678747,0.89317465,108990.0,108980.0,2.22317733]
[1748382679141,1.08307482,108990.0,108980.0,1.60459716]
[1748382679346,1.08307482,108990.0,108980.0,1.97946509]
[1748382679547,1.08307482,108990.0,108980.0,1.97958509]
[1748382679743,1.08307482,108990.0,108980.0,1.55094509]
[1748382679948,1.08307584,108990.0,108980.0,1.97958509]
[1748382682354,1.08307584,108990.0,108980.0,1.55094509]
[1748382682653,1.08307584,108990.0,108980.0,2.16948526]
[1748382684054,1.08307584,108990.0,108980.0,1.74084526]
[1748382684255,1.08307594,108990.0,108980.0,2.16944526]
[1748382684442,1.27307594,108990.0,108980.0,2.16944526]
[1748382686448,1.08317577,108990.0,108980.0,2.37290885]
[1748382686650,1.27307594,108990.0,108980.0,2.37290885]
[1748382687044,1.27307594,108990.0,108980.0,2.32630887]
[1748382687745,1.27307594,108990.0,108980.0,2.1364087]
[1748382688756,1.27307594,108990.0,108980.0,2.18300907]
[1748382689142,1.07917594,108990.0,108980.0,2.18300907]
[1748382689357,1.07917594,108990.0,108980.0,1.88319716]
[1748382690360,1.27737594,108990.0,108980.0,1.88319716]
[1748382690551,1.07917594,108990.0,108980.0,1.88319716]
[1748382690945,0.88927577,108990.0,108980.0,1.88319716]
[1748382691257,0.79917594,108990.0,108980.0,2.22290954]
[1748382691458,0.79917631,108990.0,108980.0,2.2229098]
[1748382693066,0.79917603,108990.0,108980.0,2.22290955]
[1748382693445,0.79917603,108990.0,108980.0,2.03300938]
[1748382697043,0.79917603,108990.0,108980.0,1.98254938]
[1748382697549,0.60877603,108990.0,108980.0,1.98243116]
[1748382698559,0.42787603,108990.0,108980.0,1.98243116]
[1748382699255,0.62367603,108990.0,108980.0,1.98243116]
[1748382700455,0.62367603,108990.0,108980.0,1.83261716]
[1748382700759,0.42787603,108990.0,108980.0,1.83261716]
[1748382701756,0.4278803,108990.0,108980.0,1.83261716]
[1748382702667,0.23798013,108990.0,108980.0,2.02251733]
[1748382704863,0.23798013,108990.0,108980.0,2.02239733]
[1748382706167,0.19878961,108990.0,108980.0,2.02239733]
[1748382706351,0.23797478,108990.0,108980.0,2.02239733]
[1748382706662,0.23797478,108990.0,108980.0,1.83249716]
[1748382707158,0.23797478,108990.0,108980.0,2.12560634]
[1748382707556,0.23797478,108990.0,108980.0,2.17221238]
[1748382708752,0.23797478,108990.0,108980.0,2.12560634]
[1748382709758,0.23797478,108990.0,108980.0,1.69724634]
[1748382709957,0.23797478,108990.0,108980.0,1.51381664]
[1748382710264,0.23797478,108990.0,108980.0,2.17217483]
[1748382710462,0.19878961,108990.0,108980.0,2.17217483]
[1748382710653,0.23797952,108990.0,108980.0,2.17217483]
[1748382711364,0.23797952,108990.0,108980.0,2.17205483]
[1748382712265,0.23797952,108990.0,108980.0,2.12544634]
[1748382715069,0.2379793,108990.0,108980.0,2.02223733]
[1748382715366,0.2379793,108990.0,108980.0,2.2121375]
[1748382717260,0.23794865,108990.0,108980.0,2.2121375]
[1748382717769,0.23794865,108990.0,108980.0,2.02223733]
[1748382718872,0.04453575,108990.0,108980.0,2.2421375]
[1748382719368,0.04453537,108990.0,108980.0,2.2421375]
[1748382720262,0.00537671,108990.0,108980.0,2.2421375]
[1748382720465,0.00537671,108990.0,108980.0,2.40100486]
[1748382720671,0.00537671,108990.0,108980.0,2.39194222]
[1748382721260,0.00537671,108990.0,108980.0,2.44240222]
[1748382721754,0.00537671,108990.0,108980.0,2.63240222]
[1748382722870,0.00537671,108990.0,108980.0,2.57875015]
[1748382723867,0.00537671,108990.0,108980.0,2.74826175]
[1748382724770,0.00537671,108990.0,108980.0,2.68135086]
[1748382725370,0.00537671,108990.0,108980.0,2.74826175]
[1748382726471,0.00537671,108990.0,108980.0,2.74822208]
[1748382727063,0.004,108990.0,108980.0,2.31990208]
[1748382727371,0.004,108990.0,108980.0,2.73655075]
[1748382727574,0.004,108990.0,108980.0,2.95988603]
[1748382727762,0.004,108990.0,108980.0,2.93951302]
[1748382728072,0.004,108990.0,108980.0,3.00642391]
[1748382728270,0.004,108990.0,108980.0,2.75642391]
[1748382728865,0.22782429,109030.0,109020.0,0.1833625]
[1748382729067,0.72687261,109030.0,109020.0,0.90450484]
[1748382729271,0.91677278,109030.0,109020.0,0.90450484]
[1748382729476,0.91677278,109030.0,109020.0,1.46786484]
[1748382729671,1.25475253,109030.0,109020.0,1.27796467]
[1748382729972,1.25475253,109030.0,109020.0,1.50913484]
[1748382730175,1.25775253,109030.0,109020.0,1.51013484]
[1748382730475,1.26709524,109030.0,109020.0,1.51013484]
[1748382730683,1.26709524,109030.0,109020.0,1.87093484]
[1748382730881,1.27109524,109030.0,109020.0,1.87093484]
[1748382731176,1.08119507,109030.0,109020.0,1.87093484]
[1748382731372,1.27109524,109030.0,109020.0,1.87093484]
[1748382731568,1.27109524,109030.0,109020.0,1.88464403]
[1748382731883,1.27109524,109030.0,109020.0,1.89839403]
[1748382733277,0.89399524,109030.0,109020.0,1.89839403]
[1748382733773,0.70409507,109030.0,109020.0,1.89839403]
[1748382735072,0.69475236,109030.0,109020.0,1.89839403]
[1748382735290,0.32840306,109030.0,109020.0,1.89839403]
[1748382735469,0.32840306,109030.0,109020.0,2.0882942]
[1748382735669,0.51174866,109030.0,109020.0,2.0882942]
[1748382735870,0.51174866,109030.0,109020.0,1.89839403]
[1748382736276,0.28174866,109030.0,109020.0,2.0882942]
[1748382736675,0.28174866,109030.0,109020.0,1.89839403]
[1748382737266,0.19174866,109030.0,109020.0,2.0882942]
[1748382738980,0.19174866,109030.0,109020.0,2.1387342]
[1748382739172,0.00840306,109030.0,109020.0,2.1387342]
[1748382739377,0.00840306,109030.0,109020.0,2.1587342]
[1748382741569,0.00840306,109030.0,109020.0,2.4487342]
[1748382745381,0.00440306,109030.0,109020.0,2.4477342]
[1748382746191,0.00251363,109040.0,109030.0,0.1833456]
[1748382746391,0.18584243,109040.0,109030.0,2.0679799]
[1748382746693,0.18584243,109040.0,109030.0,2.07037392]
[1748382746694,0.20201363,109040.0,109030.0,2.07037392]
[1748382746991,0.56654243,109040.0,109030.0,2.07037392]
[1748382747484,0.38321363,109040.0,109030.0,2.07037392]
[1748382747686,0.20201363,109040.0,109030.0,2.07037392]
[1748382747891,0.20201363,109040.0,109030.0,2.27037392]
[1748382748283,0.00251363,109040.0,109030.0,2.27037392]
[1748382748481,0.00313752,109040.0,109030.0,2.27037392]
[1748382749291,0.00513752,109040.0,109030.0,2.27037392]
[1748382749489,0.00113752,109040.0,109030.0,2.32391796]
[1748382749796,0.19773752,109050.0,109040.0,0.1833288]